Cogmind - Beta 15 @@@ ROGUE MODE // 2025.08.13 @ 19:49:17 Player: TapeIsSticky Result: Destroyed by 99-TNT with 99-TNT's Nukerbomber Performance ------------- Evolutions (1) 500 Regions Visited (6) 1200 Robots Destroyed (107) 535 Value Destroyed (1939) 1939 Prototype IDs (31) 620 Alien Tech Used (0) 0 Bonus (474) 474 TOTAL SCORE: 5268 Bonus ------- Follower Combat Kills 174 Aligned with FarCom 300 Cogmind --------- Core Integrity 0/400 Matter 248/300 Energy 100/100 System Corruption 6% Temperature Cool (0) Movement Core (1400) Ox27 Location -8/Mines Parts ------- > --- POWER (1) -------- (None) > --- PROPULSION (3) --- (None) > --- UTILITY (2) ------ Huge Storage Unit Experimental Targeting Computer > --- WEAPON (3) ------- Heavy Assault Rifle > --- INVENTORY (25) --- Improved Ion Engine Makeshift Power Source Reinforced Fission Core Light Treads Light Treads Light Treads Experimental Heat Sink High-capacity Matter Pod (200) Gravity Neutralizer Experimental Sensor Array Transport Network Coupler Experimental Core Analyzer Improved Armor Integrity Analyzer Advanced Weapon Cycler Advanced Transmission Jammer Advanced Component Analysis Suite Heavy Assault Rifle Heavy Assault Rifle Improved Assault Rifle Mini Grenade Launcher Mini Grenade Launcher Peak State ------------ > --- POWER ------------ Makeshift Power Source > --- PROPULSION ------- Light Treads > --- UTILITY ---------- Huge Storage Unit Experimental Targeting Computer > --- WEAPON ----------- Heavy Assault Rifle 8R-AWN's Boregun 8R-AWN's Boregun > --- INVENTORY -------- Improved Ion Engine Makeshift Power Source Reinforced Fission Core Light Treads Light Treads Light Treads Experimental Heat Sink High-capacity Matter Pod Gravity Neutralizer Experimental Sensor Array Transport Network Coupler Experimental Core Analyzer Improved Armor Integrity Analyzer Advanced Weapon Cycler Advanced Transmission Jammer Advanced Component Analysis Suite Heavy Assault Rifle Heavy Assault Rifle Improved Assault Rifle Mini Grenade Launcher Mini Grenade Launcher [Rating: 43] Favorites ----------- Power Light Angular Momentum Engine Engine Light Angular Momentum Engine Power Core Light Nuclear Core Propulsion Light Treads Treads Light Treads Leg Advanced Myomer Leg Utility Medium Armor Plating Device Seismic Detector Storage Huge Storage Unit Processor Salvage Targeting Computer Protection Medium Armor Plating Weapon Heavy Assault Rifle Energy Cannon Guided Plasma Cannon Ballistic Gun Heavy Assault Rifle Launcher Mini Grenade Launcher Special Weapon Field Lobotomy Kit Build | -11 -10 -10 -9 -9 -9 -8 ------- Run | Yrd Mat Min Mat Min Exi Min Slots Evolved 2 | . . . 2 . . . Power . | . . . . . . . Propulsion 1 | . . . 1 . . . Utility . | . . . . . . . Weapon 1 | . . . 1 . . . Parts Attached 66 | 8 6 2 17 2 28 3 Power 6 | 1 1 1 . . 3 . Engine 5 | 1 . 1 . . 3 . Core 1 | . 1 . . . . . Reactor . | . . . . . . . Propulsion 18 | 2 1 . 7 . 8 . Treads 17 | 2 1 . 7 . 7 . Leg 1 | . . . . . 1 . Wheel . | . . . . . . . Hover . | . . . . . . . Flight . | . . . . . . . Utility 18 | 2 2 1 4 . 7 2 Device 5 | 1 . 1 . . 3 . Storage 4 | 1 2 . 1 . . . Processor 3 | . . . . . 2 1 Hackware . | . . . . . . . Protection 6 | . . . 3 . 2 1 Artifact . | . . . . . . . Weapon 24 | 3 2 . 6 2 10 1 Energy Gun . | . . . . . . . Energy Cannon 1 | . . . . . 1 . Ballistic Gun 20 | 3 2 . 6 1 7 1 Ballistic Cannon . | . . . . . . . Launcher 2 | . . . . 1 1 . Special Weapon 1 | . . . . . 1 . Impact Weapon . | . . . . . . . Slashing Weapon . | . . . . . . . Piercing Weapon . | . . . . . . . Special Melee Weapon . | . . . . . . . Unidentified Prototypes 8 | . . 1 1 . 5 1 Parts Lost 22 | . . . 1 . 11 10 Power 2 | . . . . . 1 1 Propulsion 9 | . . . . . 6 3 Utility 4 | . . . 1 . 1 2 Weapon 7 | . . . . . 3 4 Highest Loss Streak 10 | . . . 1 . 6 10 To Critical Strikes 2 | . . . . . 2 . Average Backups 17 | 2 9 14 18 25 14 24 Power 1 | . . 1 1 2 1 3 Propulsion 4 | . 2 3 4 7 2 3 Utility 5 | . 1 2 5 7 5 11 Weapon 6 | . 3 8 7 9 5 6 Tool/Special . | . . . . . . . Unused Backups 34 | . 4 . 14 . 5 11 Power 9 | . 1 . 2 . 3 3 Propulsion 8 | . 1 . 5 . . 2 Utility 12 | . 2 . 2 . 2 6 Weapon 5 | . . . 5 . . . Tool/Special . | . . . . . . . Average Slot Usage (%) 99 | . 99 100 99 100 97 97 Engine 10 | . 5 9 11 11 10 11 Core 1 | . 8 4 . . . . Treads 31 | . 27 28 33 33 31 30 Device 2 | . 14 14 1 . . . Storage 10 | . 14 14 11 11 6 11 Processor 2 | . . . . . 8 1 Protection 7 | . . . 9 11 6 9 Ballistic Gun 31 | . 27 28 32 32 31 33 Peak Build Rating 43 | 7 13 23 24 25 35 43 Average Rating 20 | 5 9 14 21 24 21 28 On Entrance 16 | . 7 13 16 24 25 27 Naked Turns . | . . . . . . . Heaviest Build 105 | 13 32 36 105 105 105 100 Greatest Support 66 | 40 40 40 66 63 63 60 Greatest Overweight (x) 9 | . 9 . 1 1 4 1 Average Overweight (x) . | . . . . 1 . 1 Largest Inventory Capacity 25 | 8 15 15 25 25 25 25 Average Capacity 18 | 7 10 15 20 25 16 25 Most Carried 25 | 5 15 15 25 25 25 25 Average Carried 17 | 2 9 14 18 25 14 24 Final Capacity 25 | 8 15 15 25 25 25 25 Final Carried 25 | 4 15 15 25 25 25 21 Class Distribution -------------------- 55% | Tank 17% | Mutant 15% | Scavenger-Gunner 10% | Scavenger-Tank Dominant Class ---------------- Mutant | -10/Materials Mutant | -10/Mines Tank | -9/Materials Tank | -9/Mines Tank | -9/Exiles Scavenger-Tank | -8/Mines Resources | -11 -10 -10 -9 -9 -9 -8 ----------- Run | Yrd Mat Min Mat Min Exi Min Matter Collected 3575 | 331 453 218 903 171 1453 46 Remotely . | . . . . . . . Salvage Created 3379 | 191 410 115 1554 473 590 46 Parts 302 | 18 32 12 117 28 91 4 Haulers Intercepted 8 | . 2 . 6 . . . Recyclers Shooed 3 | . . . 3 . . . Parts Field Recycled . | . . . . . . . Retrieved Matter . | . . . . . . . Parts Self-Destructed . | . . . . . . . Prevented . | . . . . . . . Kills | -11 -10 -10 -9 -9 -9 -8 ------- Run | Yrd Mat Min Mat Min Exi Min Combat Hostiles Destroyed 62 | . 8 5 28 13 5 3 Guns 58 | . 8 5 28 13 1 3 AOE 4 | . . . . . 4 . Classes Destroyed 15 | 3 5 1 4 1 1 . Worker 9 | 1 . . 7 1 . . Builder 3 | . 1 . 1 1 . . Tunneler 10 | 5 1 1 . 3 . . Hauler 8 | . 2 . 6 . . . Recycler 2 | 1 . . 1 . . . Mechanic 1 | . . 1 . . . . Operator 1 | . . . 1 . . . Watcher 5 | . 1 . 4 . . . Swarmer 19 | . 3 3 6 4 . 3 Grunt 26 | . 5 2 11 8 . . Brawler 1 | . . . 1 . . . Duelist 1 | . . . 1 . . . Sentry 9 | . . . 9 . . . Zionite 8 | . . . . . 8 . Assembled 5 | . . . . 1 4 . Best Kill Streak 7 | 5 4 3 7 6 4 3 Combat Bots Only 5 | . 3 3 5 4 4 3 Max Kills in Single Turn 2 | 1 1 1 2 2 2 2 Gunslinging 1 | . . . 1 1 . 1 Exploded 1 | . . . . . 1 . Melee . | . . . . . . . Uniques/NPCs Destroyed 4 | . . . . . 4 . 8R-AWN (-9/Exiles) EX-HEX (-9/Exiles) EX-DEC (-9/Exiles) EX-BIN (-9/Exiles) Combat | -11 -10 -10 -9 -9 -9 -8 -------- Run | Yrd Mat Min Mat Min Exi Min Hostile Shots Fired 313 | . 27 20 72 25 119 50 Missed 82 | . 11 7 32 5 18 9 Hits 231 | . 16 13 40 20 101 41 Projectile 231 | . 16 13 40 20 101 41 AOE 20 | . . . . . . 20 Critical Strikes 28 | . 1 . . . 27 . Damage Taken 4206 | . 183 167 492 193 1755 1416 Core 487 | . 32 14 50 27 180 184 Absorbed by Shields . | . . . . . . . Core Remaining (%) 90 | 100 . 81 . . . . Volleys Fired 235 | 11 26 16 64 22 88 8 Largest 3 | 2 2 2 3 3 3 3 Hottest 120 | 40 40 46 69 69 120 83 Shots Fired 600 | 22 54 32 192 60 218 22 Gun 574 | 22 54 32 192 57 195 22 Cannon 9 | . . . . . 9 . Launcher 12 | . . . . 3 9 . Special 5 | . . . . . 5 . Kinetic 574 | 22 54 32 192 57 195 22 Thermal 9 | . . . . . 9 . Explosive 12 | . . . . 3 9 . Electromagnetic . | . . . . . . . Robot Hit Streak 24 | 5 12 8 11 15 23 24 Robot Miss Streak 7 | 1 3 5 5 2 7 3 Penetration Max . | . . . . . . . Secondary Targets 8 | . 1 . 2 2 1 2 Max Gunslinging Chain 1 | . 1 . 1 1 1 1 Shots Hit Robots 380 | 13 36 21 127 35 134 14 Core Hits 181 | 7 19 12 81 16 41 5 Critical Kills 1 | . . . 1 . . . Critical Parts Destroyed 3 | . . . . . 2 1 Critical Strikes 6 | . . . 1 . 4 1 Destroy 6 | . . . 1 . 4 1 Melee Attacks . | . . . . . . . Impact . | . . . . . . . Slashing . | . . . . . . . Piercing . | . . . . . . . Sneak Attacks . | . . . . . . . Combat Hostiles . | . . . . . . . Follow-up Attacks . | . . . . . . . Damage Inflicted 6835 | 173 495 368 2238 687 2689 185 Guns 5879 | 164 466 339 2071 622 2032 185 Cannons 323 | . . . . . 323 . Explosions 334 | . . . . . 334 . Melee . | . . . . . . . Ramming 299 | 9 29 29 167 65 . . Kinetic 5879 | 164 466 339 2071 622 2032 185 Thermal 323 | . . . . . 323 . Explosive 334 | . . . . . 334 . Electromagnetic . | . . . . . . . Impact . | . . . . . . . Slashing . | . . . . . . . Piercing . | . . . . . . . Highest Corruption 6 | . 3 3 . . 6 6 Average Corruption 4 | . 2 3 . . 5 6 Corruption Purged . | . . . . . . . Corruption Blocked . | . . . . . . . Effects 101 | . 13 15 . . 72 1 Message Errors 24 | . . 3 . . 20 1 Matter Fused 22 | . 3 3 . . 16 . Heat Flow Errors 10 | . 1 4 . . 5 . Energy Discharges 13 | . 2 1 . . 10 . Parts Rejected 1 | . . . . . 1 . Parts Fused 3 | . . 1 . . 2 . Data Loss (minor) 16 | . 3 1 . . 12 . Data Loss (major) 6 | . 1 1 . . 4 . Misfires 2 | . 2 . . . . . Alerts 4 | . 1 1 . . 2 . Overload Shots . | . . . . . . . Overflow Damage 25 | . . . . . 25 . Projectiles 23 | . . . . . 23 . Explosions 2 | . . . . . 2 . Melee . | . . . . . . . Knockbacks 2 | . . . 2 . . . Impact 2 | . . . 2 . . . Kinetic . | . . . . . . . Secondary . | . . . . . . . Self-Inflicted Damage 36 | . . . . . 36 . Shots 2 | . . . . . 2 . Rammed 41 | 1 4 5 25 6 . . Targets Rammed 48 | 2 5 6 28 7 . . Kicked . | . . . . . . . Crushed 7 | 1 1 1 3 1 . . Highest Temperature 258 | . 160 258 102 72 210 105 Average Temperature 37 | . 43 91 22 26 38 42 Received Heat Transfer 420 | . 93 81 168 78 . . Siege Activations . | . . . . . . . Martial Activations . | . . . . . . . Shielding Activations . | . . . . . . . Robots Disrupted . | . . . . . . . Combat Hostiles . | . . . . . . . Robots Corrupted 1 | . . . . 1 . . Combat Hostiles . | . . . . . . . Parts Fried 2 | . . . . 2 . . Impact Corruptions 1 | . . . . 1 . . Robots Melted . | . . . . . . . Combat Hostiles . | . . . . . . . Parts Melted 1 | . . . 1 . . . Heat Transferred 720 | . . . . . 720 . Parts Sabotaged . | . . . . . . . Parts Stolen . | . . . . . . . Parts Stripped . | . . . . . . . Power Chain Reactions . | . . . . . . . Alert | -11 -10 -10 -9 -9 -9 -8 ------- Run | Yrd Mat Min Mat Min Exi Min Maximum Alert Level 1 | . . . 1 . . . Low Security (%) 73 | 100 100 100 38 100 . 100 Level 1 26 | . . . 61 . . . Level 2 . | . . . . . . . Level 3 . | . . . . . . . Level 4 . | . . . . . . . Level 5 . | . . . . . . . High Security . | . . . . . . . Max Security . | . . . . . . . Peak Influence 396 | 20 77 116 396 135 . 85 Initial 135 | . . . . 135 . . Average 113 | 2 13 28 238 20 . 53 Influence Increases 1910 | 35 254 236 1008 292 . 85 Destroy 0b10 Robot/C 1280 | . 160 180 640 240 . 60 Destroy 0b10 Robot/NC 195 | 35 25 10 100 25 . . Destroy Leader 286 | . 36 30 190 20 . 10 Allied During Kill 38 | . . 16 22 . . . Successful Hack 42 | . 18 . 24 . . . Disable Machine 15 | . . . . . . 15 Destroy Structure 9 | . . . 2 7 . . Lose Combat Pursuer 45 | . 15 . 30 . . . Influence Decreases 1910 | 35 254 236 661 607 32 85 Entered New Map 244 | . . . . 212 32 . Time Decay 1541 | 35 254 216 611 395 . 30 Lost Part 65 | . . . 10 . . 55 Lost Ally 60 | . . 20 40 . . . Squads Dispatched 7 | . 2 1 3 1 . . Investigation 2 | . 1 . 1 . . . Extermination . | . . . . . . . Reinforcement 4 | . 1 . 2 1 . . Assault 1 | . . 1 . . . . Garrison . | . . . . . . . Intercept . | . . . . . . . Searches Triggered . | . . . . . . . Construction Impeded 1 | . . . . 1 . . Haulers Reinforced . | . . . . . . . Active Scanning Responses . | . . . . . . . Cargo Convoy Interrupts . | . . . . . . . Stealth | -11 -10 -10 -9 -9 -9 -8 --------- Run | Yrd Mat Min Mat Min Exi Min Distress Signals 5 | . 2 . 2 1 . . Communications Jammed . | . . . . . . . Distress Signals . | . . . . . . . Times Spotted 106 | . 11 9 53 14 15 4 Peak Tracking Total 9 | . 3 4 5 3 9 4 Tactical Retreats 7 | . 1 . 2 1 3 . Traps | -11 -10 -10 -9 -9 -9 -8 ------- Run | Yrd Mat Min Mat Min Exi Min Traps Triggered 8 | . 6 . 2 . . . Indirectly . | . . . . . . . Trap Hack Attempts . | . . . . . . . Triggered . | . . . . . . . Disarmed . | . . . . . . . Reprogrammed . | . . . . . . . Reused . | . . . . . . . Traps Extracted . | . . . . . . . Installed . | . . . . . . . Triggered . | . . . . . . . Machines | -11 -10 -10 -9 -9 -9 -8 ---------- Run | Yrd Mat Min Mat Min Exi Min Machines Disabled 9 | . . . . . 8 1 Max in Single Turn 2 | . . . . . 2 1 Machines Repaired . | . . . . . . . Machines Dismantled . | . . . . . . . Machines Sabotaged . | . . . . . . . Overloaded Fab Kills . | . . . . . . . Hacking | -11 -10 -10 -9 -9 -9 -8 --------- Run | Yrd Mat Min Mat Min Exi Min Machines Accessed 15 | . 6 . 7 . 2 . Terminals 10 | . 5 . 5 . . . Fabricators . | . . . . . . . Repair Stations 1 | . 1 . . . . . Recycling Units 2 | . . . 2 . . . Scanalyzers . | . . . . . . . Garrison Access . | . . . . . . . Total Hacks 31 | . 11 . 18 . 2 . Successful 22 | . 8 . 12 . 2 . Failed 9 | . 3 . 6 . . . Catastrophic 1 | . . . 1 . . . Database Lockouts . | . . . . . . . Manual 25 | . 10 . 14 . 1 . Terminals 22 | . 9 . 13 . . . Fabricators . | . . . . . . . Repair Stations 2 | . 2 . . . . . Recycling Units 5 | . . . 5 . . . Scanalyzers . | . . . . . . . Garrison Access . | . . . . . . . Terminal Hacks 7 | . 1 . 4 . 2 . Record 1 | . . . . . 1 . Robot Analysis 5 | . 1 . 4 . . . Proto ID Catalog 1 | . . . . . 1 . Fabricator Hacks . | . . . . . . . Repair Station Hacks 1 | . 1 . . . . . Scan Component 1 | . 1 . . . . . Recycling Unit Hacks 2 | . . . 2 . . . Retrieve Components 2 | . . . 2 . . . Scanalyzer . | . . . . . . . Garrison Access Hacks . | . . . . . . . Unauthorized Hacks 12 | . 6 . 6 . . . Terminals 12 | . 6 . 6 . . . Botnet 2 | . 1 . 1 . . . Skim 10 | . 5 . 5 . . . Fabricators . | . . . . . . . Repair Stations . | . . . . . . . Recycling Units . | . . . . . . . Scanalyzers . | . . . . . . . Garrison Access . | . . . . . . . Data Cores Recovered 1 | . . . 1 . . . Used 1 | . . . 1 . . . Hacking Detections 6 | . 4 . 2 . . . Full Trace Events . | . . . . . . . Feedback Events . | . . . . . . . Feedback Blocked . | . . . . . . . Robot Schematics Acquired . | . . . . . . . Robots Built . | . . . . . . . Authchips . | . . . . . . . Time . | . . . . . . . Total Robot Build Rating . | . . . . . . . Part Schematics Acquired . | . . . . . . . Parts Built . | . . . . . . . Authchips . | . . . . . . . Time . | . . . . . . . Total Part Build Rating . | . . . . . . . Parts Repaired . | . . . . . . . Time . | . . . . . . . Parts Recycled . | . . . . . . . Recycled Matter . | . . . . . . . Retrieved Matter . | . . . . . . . Retrieved Components 20 | . . . 20 . . . Parts Scanalyzed . | . . . . . . . Part Schematics Acquired . | . . . . . . . Parts Damaged . | . . . . . . . Bothacking | -11 -10 -10 -9 -9 -9 -8 ------------ Run | Yrd Mat Min Mat Min Exi Min Used RIF Installer . | . . . . . . . Robots Hacked . | . . . . . . . Non-combat . | . . . . . . . Combat . | . . . . . . . Robot Hacks Applied . | . . . . . . . Relay Couplers Released . | . . . . . . . Fabnet Peak Effective % . | . . . . . . . Robots Rewired . | . . . . . . . Allies Hacked . | . . . . . . . Hacks Repelled . | . . . . . . . Allies | -11 -10 -10 -9 -9 -9 -8 -------- Run | Yrd Mat Min Mat Min Exi Min Total Allies 5 | . . 5 . . . . Largest Group 3 | . . 3 3 . . . Highest-Rated Group 62 | . . 62 40 . . . Highest-Rated Ally 31 | . . 31 16 . . . Total Orders . | . . . . . . . Ally Attacks 41 | . . 13 28 . . . Total Damage 438 | . . 213 225 . . . Kills 8 | . . 4 4 . . . Allies Corrupted . | . . . . . . . Allies Melted . | . . . . . . . Intel | -11 -10 -10 -9 -9 -9 -8 ------- Run | Yrd Mat Min Mat Min Exi Min Active Infowar (turns) 3150 | 1 1342 974 831 . 2 . Sensors 1 | . . 1 . . . . Seismic 3147 | 1 1342 973 831 . . . Jamming 2 | . . . . . 2 . Robot Analysis Total 5 | . 1 . 4 . . . Derelict Logs Recovered 3 | . . 2 . 1 . . Drone Launches . | . . . . . . . Drone Recoveries . | . . . . . . . Exploration | -11 -10 -10 -9 -9 -9 -8 ------------- Run | Yrd Mat Min Mat Min Exi Min Turns Passed 15986 | 261 1342 975 4806 3777 4755 70 Spaces Moved 6340 | 76 691 558 2053 852 2093 17 Core 67 | 5 2 . . . 60 . Treads 6273 | 71 689 558 2053 852 2033 17 Legs . | . . . . . . . Wheels . | . . . . . . . Hover . | . . . . . . . Flight . | . . . . . . . Fastest Speed 50 | 50 160 160 160 240 160 240 Average Speed 198 | 152 161 160 199 240 204 240 Slowest Speed 500 | 160 500 160 240 240 320 240 Overloaded Moves . | . . . . . . . Propulsion Burnouts . | . . . . . . . Robots Hopped . | . . . . . . . Potential Cave-ins 2 | . . . . . 2 . Cave-ins Triggered . | . . . . . . . Exploration Rate (%) 69 | 4 96 93 98 88 91 14 Regions Visited 6 Branch Regions 4 Pre-discovered Areas 6 | . 2 1 2 . 1 . Known Exits Taken 2 | . . 1 1 . . . Unknown Exits Taken 4 | 1 1 . . 1 1 . Scrap Searched 3 | . . 2 . 1 . . Spaces Dug . | . . . . . . . Terrain Destroyed 62 | . . . . 10 51 1 Melee . | . . . . . . . Projectile 1 | . . . . . . 1 AOE 61 | . . . . 10 51 . Terrain Rammed . | . . . . . . . Walls Destroyed . | . . . . . . . Machines Disabled . | . . . . . . . Actions | -11 -10 -10 -9 -9 -9 -8 --------- Run | Yrd Mat Min Mat Min Exi Min Total 9233 | 194 865 607 2603 2529 2406 29 Wait 2321 | 94 102 17 383 1647 78 . Move 6334 | 75 690 557 2052 851 2092 17 Hop . | . . . . . . . Pick Up 111 | 4 19 3 32 . 53 . Fast Attach 32 | 6 6 1 1 . 18 . Attach 20 | 1 . . 5 . 10 4 Detach . | . . . . . . . Swap 32 | 1 6 2 11 2 10 . Drop 100 | . 11 5 27 . 57 . Fire 235 | 11 26 16 64 22 88 8 Melee . | . . . . . . . Ram . | . . . . . . . Kick . | . . . . . . . Crush 48 | 2 5 6 28 7 . . Escape Stasis . | . . . . . . . Rewire . | . . . . . . . Trap . | . . . . . . . Miscellaneous . | . . . . . . . Route ------- -11/Scrapyard -10/Materials (discovered 6 exits: *Mat x3 / [*Min x2] / [*Sub]) -10/Mines (discovered 2 exits: *Mat x2) -9/Materials (discovered 5 exits: *Mat x3 / *Min / *Sto) -9/Mines (discovered 3 exits: *Mat x2 / *Exi) -9/Exiles (discovered 2 exits: [*Min x2]) -8/Mines (discovered 1 exit: Mat) History --------- Turn | Location | Event 43 | -11/Scrapyard | Discovered new exit (range 16) 262 | -11/Scrapyard | Entered Materials 263 | -10/Materials | Met a group of wandering Federalists 301 | -10/Materials | Build established: Mutant 531 | -10/Materials | Discovered new exit (range 11) 617 | -10/Materials | Discovered new exit (range 11) 815 | -10/Materials | Discovered new exit (range 5) 1089 | -10/Materials | Discovered new exit (range 11) 1092 | -10/Materials | Learned location of Recycling (-9) 1155 | -10/Materials | Learned 2 Mines zone layouts 1186 | -10/Materials | Discovered new exit (range 7) 1208 | -10/Materials | Learned location of Mines (-9) 1277 | -10/Materials | Discovered new exit (range 15) 1308 | -10/Materials | Learned 4 Subcaves zone layouts 1321 | -10/Materials | Loaded intel: 1 repair station location 1422 | -10/Materials | Learned Storage emergency access door positions 1604 | -10/Materials | Entered Mines 1605 | -10/Mines | Identified exit to Materials 1607 | -10/Mines | Received a Mining Laser from a helpful Derelict 1794 | -10/Mines | Met a Derelict testing a Signal Generator 1956 | -10/Mines | Received a Rocket Launcher from a helpful Derelict 2068 | -10/Mines | Found a damaged Exp. Sensor Array with a note attached 2073 | -10/Mines | Found Prototype Device 2073 | -10/Mines | Identified Exp. Sensor Array 2153 | -10/Mines | Assisted by bots powering up and referring to "LRC-V3" 2198 | -10/Mines | Learned location of Storage (-9) 2390 | -10/Mines | Learned Materials garrison access intel 2579 | -10/Mines | Entered Materials 2579 | -9/Materials | Accompanied by 3 allies 2579 | -9/Materials | Evolved 2 slots: Propulsion x1, Weapon x1 2880 | -9/Materials | Build established: Scavenger-Gunner 3021 | -9/Materials | Discovered new exit (range 8) 3678 | -9/Materials | Build established: Tank 3780 | -9/Materials | Discovered new exit (range 12) 3990 | -9/Materials | Identified exit to Materials 3990 | -9/Materials | Identified exit to Mines 3990 | -9/Materials | Identified exit to Storage 4136 | -9/Materials | Learned location of Mines (-8) 4166 | -9/Materials | Learned location of Zion (-6) 4187 | -9/Materials | Learned Storage trap positions 4196 | -9/Materials | Learned Materials emergency access door positions 4247 | -9/Materials | Learned 2 Storage zone layouts 4626 | -9/Materials | Build established: Scavenger-Tank 5459 | -9/Materials | Build established: Tank 7385 | -9/Materials | Entered Mines 7405 | -9/Mines | Learned Materials terminal intel 7470 | -9/Mines | Excavation squad dispatched 7470 | -9/Mines | A large section of the Mines collapsed 7720 | -9/Mines | Excavation squad dispatched 11149 | -9/Mines | Deemed a non-threat by the Exiles lab entrance 11151 | -9/Mines | Discovered new exit (range 5) 11162 | -9/Mines | Entered Exiles 11222 | -9/Exiles | Met 8R-AWN 11261 | -9/Exiles | Met EX-HEX 11371 | -9/Exiles | Met EX-BIN 11410 | -9/Exiles | Aligned with FarCom system 11412 | -9/Exiles | Given EX-Vault access code 11484 | -9/Exiles | Opened EX-Vault 11498 | -9/Exiles | Found Gui. Plasma Cannon 11549 | -9/Exiles | Warned to stay clear of 0b10 Research branches 11624 | -9/Exiles | Met EX-DEC 12858 | -9/Exiles | Attacked by the Exiles 13024 | -9/Exiles | Destroyed 8R-AWN 13054 | -9/Exiles | Lost 6 parts (3n1u2w) 13174 | -9/Exiles | Found Prototype Ballistic Gun 13186 | -9/Exiles | Identified 8R-AWN's Boregun 13445 | -9/Exiles | Core integrity fell below 50% 13484 | -9/Exiles | Lost 4 parts (3n1w) 13782 | -9/Exiles | Destroyed EX-HEX 13844 | -9/Exiles | Destroyed EX-DEC 13888 | -9/Exiles | Destroyed EX-BIN 13908 | -9/Exiles | Build established: Scavenger-Gunner 14096 | -9/Exiles | Discovered new exit (range 14) 14354 | -9/Exiles | Found 8R-AWN's Boregun 14406 | -9/Exiles | Found Prototype Processor 15043 | -9/Exiles | Found Prototype Processor 15363 | -9/Exiles | Found Field Lobotomy Kit 15686 | -9/Exiles | Build established: Scavenger-Tank 15898 | -9/Exiles | Discovered new exit (range 10) 15917 | -9/Exiles | Entered Mines 15973 | -8/Mines | 99-TNT came to Exiles' defense 15978 | -8/Mines | Identified Exp. Targeting Computer 15982 | -8/Mines | Core integrity fell below 20% 15987 | -8/Mines | Destroyed by 99-TNT with 99-TNT's Nukerbomber Last Messages --------------- 15975_ T-07 Excavator destroyed. 15977_ The unstable cave ceiling collapses. 15977_ Lgt. Treads destroyed. 15978_ Identified Exp. Targeting Computer. 15979_ The unstable cave ceiling collapses. 15979_ HV Slug penetrates 99-TNT. 15979_ 99-TNT suffers critical hit (Destroy). 15979_ Destroyed Prototype Device. 15979_ HV Slug penetrates Earth. 15979_ Core Extractor disabled. 15980_ The unstable cave ceiling collapses. 15981_ Mak. Power Source destroyed. 15982_ The unstable cave ceiling collapses. 15982_ HV Slug penetrates 99-TNT. 15983_ The unstable cave ceiling collapses. 15985_ HV Slug penetrates Wall. 15985_ HV Slug penetrates 99-TNT. 15985_ Lgt. Treads destroyed. 15985_ 8R-AWN's Boregun destroyed. 15986_ The unstable cave ceiling collapses. Map ----- +----------------------------------------------------+ | ???????????????????????????????????????????????? | | ???????????????????????????????????????????????? | | ???????????????????????????????????????????????? | | ???????????????????????????????????????????????? | | ???????????????????????????##?###??????????????? | | ??????????????????????????# ? ??????????????? | | ??????????????????????????# "?" "??????????????? | | ??????????????????????????# "?" """???"????????? | | ??????????????????????????# """ """ """????????? | | ??????????????????????????# ???????? | | ???????????????????????# """ """ """ ???????? | | ?????????????????????## " """ """ #?????? | | ??????????????????? ? """ """ #?????? | | ???????????????? ? #?????? | | ???????????????? # """ ??????? | | ???????????????? # # """ ??????? | | ????????????????"" """ #?????? | | ????????????? """ #?????? | | ????????????? """ # """ """ #?????? | | ?????????????? """ """ #?????? | | ???????????? ?? """ """????????? | | ????????????? ? #?????? | | ???????????????? # # #########????????? | | ??????????????????# #???????????????? | | ???????????????????# #????????????????? | | ???????????????????# # @ #????????????????? | | ???????????????????# #????????????????? | | ???????????????????# #???????????????? | | ???????????????????# #???????????????? | | ???????????????????# ??????????????? | | ???????????????????## # #####?????????????? | | ????????????????????## d # #?????????????????? | | ?????????????????????#### ####?????????????????? | | ????????????????????????# #????????????????????? | | ????????????????????????? ?????????????????????? | | ????????????????????????? ?????????????????????? | | ????????????????????????? ?????????????????????? | | ????????????????????????? ?????????????????????? | | ????????????????????????? ?????????????????????? | | ????????????????????????? ?????????????????????? | | ????????????????????????? ?????????????????????? | | ???????????????????????????????????????????????? | | ???????????????????????????????????????????????? | | ???????????????????????????????????????????????? | | ???????????????????????????????????????????????? | | ???????????????????????????????????????????????? | | | | | | | | | +----------------------------------------------------+ Best States ------------- Heat Dissipation 28 Energy Generation 18 Energy Capacity 265 Matter Stores 300 Matter Capacity 300 Sight Range 16 Terrain Scan Density 10 Armor Coverage 225 Evasion (%) 40 Targeting Accuracy 12 Recoil Reduction 3 Salvage Targeting 2 Item Schematics ----------------- None Robot Schematics ------------------ None Fabricated ------------ Nothing Repaired ---------- Nothing Alien Tech Used ----------------- None Achievements -------------- None Challenges ------------ None Game ------ Seed FissionTeslaBallwheel Manual? 0 Play Time 00:48:28 Cumulative 175.5 hours Start 2025.08.13 @ 17:33:49 End 2025.08.13 @ 19:49:17 Sessions 7 Manual Loads 0 Difficulty Rogue Special Mode None Game No. 88 Rogue 88 Adventurer 0 Explorer 0 Win Type - Total 19 Types 9/1/5/1/0/1/1/1/0/0 Lore% 65 Gallery% 61 Achievement% 70 Wizard Run 0 Options --------- Layout 1 ASCII 0 Keyboard 0 Movement Arrows Keybinds 0 Fullscreen 2 Font 24/Tamsyn Map View 50x35 Zoom Use 0% Tactical HUD 1 Map Filters NONE Filters NONE Steam 1 RUN: 107bbf95-86e4-42ad-b600-222a9d70ed99